fUSD/lending_fUSD_20251120
["ID","MTS","AMOUNT","RATE_DAILY","PERIOD"]
[394488210,1763620835549,151.0,0.00042039,120]
[394488211,1763620835890,151.0,0.00042039,120]
[394488212,1763620836008,151.0,0.00042039,120]
[394488213,1763620836191,151.0,0.00042039,120]
[394488214,1763620836307,151.0,0.00042039,120]
[394488215,1763620836485,240.664456,0.00042039,120]
[394488217,1763620836737,297.911199,0.00042039,120]
[394488225,1763620839223,151.0,0.00042039,120]
[394488227,1763620839532,151.0,0.00042039,120]
[394488229,1763620839887,151.0,0.00042039,120]
[394488231,1763620840207,151.0,0.00042039,120]
[394488233,1763620840534,151.0,0.00042039,120]
[394488235,1763620840884,151.0,0.00042039,120]
[394488237,1763620841197,151.0,0.00042039,120]
[394488239,1763620841493,151.0,0.00042039,120]
[394488241,1763620841826,151.0,0.00042039,120]
[394488243,1763620842235,151.0,0.00042039,120]
[394488245,1763620842570,151.0,0.00042039,120]
[394488247,1763620842859,151.0,0.00042039,120]
[394488249,1763620843206,151.0,0.00042039,120]
[394488251,1763620843497,151.0,0.00042039,120]
[394488252,1763620843779,151.0,0.00042039,120]
[394488254,1763620844070,251.521224,0.00042039,120]
[394488256,1763620849974,151.0,0.00042039,90]
[394488257,1763620850491,151.0,0.00042039,90]
[394488258,1763620850807,151.0,0.00042039,90]
[394488259,1763620851178,151.0,0.00042039,90]
[394488260,1763620851971,151.0,0.00042039,90]
[394488261,1763620852446,151.0,0.00042039,90]
[394488262,1763620852676,151.0,0.00042039,90]
[394488263,1763620852981,151.0,0.00042039,90]
[394488264,1763620853292,270.926232,0.00042039,90]
[394488269,1763620873780,151.0,0.00042039,120]
[394488271,1763620874079,151.0,0.00042039,120]
[394488273,1763620874361,151.0,0.00042039,120]
[394488275,1763620874820,151.0,0.00042039,120]
[394488276,1763620875016,151.0,0.00042039,120]
[394488277,1763620875356,151.0,0.00042039,120]
[394488278,1763620875845,269.722112,0.00042039,120]
[394488279,1763620880445,151.0,0.00042039,120]
[394488280,1763620880743,151.0,0.00042039,120]
[394488281,1763620880808,151.0,0.00042039,120]
[394488282,1763620881028,151.0,0.00042039,120]
[394488283,1763620881109,151.0,0.00042039,120]
[394488284,1763620881537,203.650847,0.00042039,120]
[394488285,1763620881643,151.0,0.00042039,120]
[394488286,1763620881965,151.0,0.00042039,120]
[394488287,1763620882290,151.0,0.00042039,120]
[394488288,1763620882570,151.0,0.00042039,120]
[394488289,1763620883105,151.0,0.00042039,120]
[394488290,1763620883284,151.0,0.00042039,120]
[394488291,1763620883608,151.0,0.00042039,120]
[394488292,1763620883924,151.0,0.00042039,120]
[394488293,1763620884237,151.0,0.00042039,120]
[394488294,1763620884563,151.0,0.00042039,120]
[394488295,1763620884989,151.0,0.00042039,120]
[394488296,1763620885095,151.0,0.00042039,120]
[394488297,1763620885279,151.0,0.00042039,120]
[394488298,1763620885436,151.0,0.00042039,120]
[394488299,1763620885624,151.0,0.00042039,120]
[394488300,1763620885753,151.0,0.00042039,120]
[394488301,1763620885951,151.0,0.00042039,120]
[394488302,1763620886120,151.0,0.00042039,120]
[394488303,1763620886235,155.970762,0.00042039,120]
[394488304,1763620886458,151.0,0.00042039,120]
[394488305,1763620886844,196.920313,0.00042039,120]
[394488307,1763620891158,151.0,0.00042039,30]
[394488308,1763620891463,186.042348,0.00042039,30]
[394488311,1763620892712,944.494,0.00015922,2]
[394488312,1763620892782,229.575,0.00015922,2]
[394488314,1763620894164,151.0,0.00042039,120]
[394488315,1763620894320,151.0,0.00042039,120]
[394488317,1763620923820,788.21,0.00042039,30]
[394488318,1763620944033,369.081,0.00016147,2]
[394488319,1763620965880,3169.67138109,0.00016148,2]
[394488320,1763620980336,199.51905564,0.00016148,2]
[394488321,1763620990982,300.0,0.00042039,120]
[394488322,1763621001467,500.0,0.00026708,120]
[394488323,1763621004679,204.0120159,0.00016148,2]
[394488363,1763621060196,-270.34750041,0.00016244,2]
[394488365,1763621062202,-29.65249959,0.00016244,2]
[394488366,1763621062225,-231.94698936,0.00016244,2]
[394488367,1763621064408,-446.53305701,0.00016244,2]
[394488368,1763621069638,-263.27602428,0.00016244,2]
[394488396,1763621114723,150.0,0.000162,2]
[394488398,1763621115056,150.0,0.000162,2]
[394488403,1763621121447,811.72,0.00016066,2]
[394488408,1763621131763,150.0,0.000162,2]
[394488409,1763621131836,150.0,0.000162,2]
[394488410,1763621132010,150.0,0.000162,2]
[394488411,1763621132087,150.0,0.000162,2]
[394488412,1763621132354,150.0,0.000162,2]
[394488421,1763621144246,150.0,0.000162,2]
[394488422,1763621144408,155.92779981,0.000162,2]
[394488423,1763621144469,279.51550177,0.000162,2]
[394488456,1763621212386,1427.5771961,0.00016148,2]
[394488460,1763621225238,-199.98784079,0.00016148,2]
[394488462,1763621231267,-289.74907422,0.00016148,2]
[394488463,1763621234664,-155.60567164,0.00016148,2]
[394488465,1763621238277,-160.25092578,0.00016148,2]
[394488468,1763621241379,-185.91907422,0.00016148,2]
[394488469,1763621243909,-264.08092578,0.00016148,2]
[394488473,1763621255128,-312.0,0.00016147,2]
[394488477,1763621264948,-297.39,0.00016147,2]
[394488479,1763621267011,-150.0,0.0002,14]
[394488480,1763621271021,-801.36451612,0.00016146,2]
[394488483,1763621278520,-257.12938667,0.00016146,2]
[394488486,1763621283627,-141.50609721,0.00016146,2]
[394488487,1763621283650,-262.22754723,0.00016146,2]
[394488488,1763621284088,-150.0,0.0002,14]
[394488489,1763621286344,-178.51051393,0.00016048,2]
[394488490,1763621286368,-37.77245277,0.00016146,2]
[394488491,1763621286392,-76.11404765,0.00016146,2]
[394488513,1763621360728,-179.56715013,0.00016048,2]
[394488514,1763621360750,-152.0395623,0.00016048,2]
[394488515,1763621364613,-218.84,0.00016048,2]
[394488516,1763621365455,151.0,0.0004204,120]
[394488517,1763621366974,-346.6648598,0.00016048,2]
[394488518,1763621369566,-265.90041448,0.00016048,2]
[394488519,1763621374226,-247.95958552,0.00016048,2]
[394488520,1763621383040,-200.0,0.00016048,2]
[394488521,1763621384231,-1120.07704389,0.0002,14]
[394488522,1763621398479,196.757959,0.0004204,120]
[394488530,1763621419899,196.757959,0.0004204,120]
[394488531,1763621420228,197.08565,0.0004204,120]
[394488532,1763621420285,196.757959,0.0004204,120]
[394488533,1763621421918,152.431769,0.0004204,120]
[394488534,1763621422315,152.431769,0.0004204,120]
[394488535,1763621422721,152.431769,0.0004204,120]
[394488538,1763621423370,150.687338,0.0004204,120]
[394488539,1763621423706,150.687338,0.0004204,120]
[394488540,1763621424112,150.687338,0.0004204,120]
[394488541,1763621424575,197.08565,0.0004204,120]
[394488542,1763621424898,150.687338,0.0004204,120]
[394488543,1763621424961,152.431769,0.0004204,120]
[394488544,1763621425471,197.08565,0.0004204,120]
[394488545,1763621425695,152.431769,0.0004204,120]
[394488546,1763621425828,150.687338,0.0004204,120]
[394488547,1763621427183,152.431769,0.0004204,120]
[394488548,1763621427245,150.687338,0.0004204,120]
[394488552,1763621427865,152.431769,0.0004204,120]
[394488554,1763621430533,152.787224,0.0004204,120]
[394488556,1763621431022,150.687338,0.0004204,120]
[394488557,1763621431246,152.431769,0.0004204,120]
[394488558,1763621431483,150.687338,0.0004204,120]
[394488574,1763621431959,-1421.29982089,0.00016048,2]
[394488576,1763621431968,-336.72049256,0.00016096,2]
[394488579,1763621431980,-151.0,0.00016144,2]
[394488580,1763621431989,-300.0,0.00016145,2]
[394488581,1763621431998,-1200.0,0.00016145,2]
[394488582,1763621432007,-473.88595235,0.00016146,2]
[394488583,1763621432016,-500.0,0.00016146,2]
[394488584,1763621432025,-500.0,0.00016146,2]
[394488585,1763621432034,-500.0,0.00016146,2]
[394488586,1763621432043,-500.0,0.00016146,2]
[394488587,1763621432052,-500.0,0.00016146,2]
[394488588,1763621432061,-500.0,0.00016146,2]
[394488589,1763621432070,-500.0,0.00016146,2]
[394488590,1763621432079,-500.0,0.00016146,2]
[394488591,1763621432088,-500.0,0.00016146,2]
[394488592,1763621432097,-500.0,0.00016146,2]
[394488593,1763621432106,-500.0,0.00016146,2]
[394488594,1763621432115,-500.0,0.00016146,2]
[394488595,1763621432125,-309.59606743,0.00016146,2]
[394488596,1763621432134,-500.0,0.00016146,2]
[394488597,1763621432143,-499.99999999,0.00016146,2]
[394488598,1763621432152,-248516.46942237,0.00016147,2]
[394488599,1763621432164,-45938.18174887,0.00016147,2]
[394488600,1763621432177,-3753.07156661,0.00016147,2]
[394488601,1763621432188,-3093.08847421,0.00016147,2]
[394488602,1763621432199,-5879.39187,0.00016147,2]
[394488603,1763621432210,-1650.0,0.00016147,2]
[394488604,1763621432237,-332.00277346,0.00016147,2]
[394488605,1763621432258,-4683.58356105,0.00016147,2]
[394488617,1763621433506,152.787224,0.0004204,120]
[394488618,1763621434148,150.687338,0.0004204,120]
[394488619,1763621434374,152.787224,0.0004204,120]
[394488620,1763621434598,150.687338,0.0004204,120]
[394488621,1763621434964,150.687338,0.0004204,120]
[394488622,1763621435192,152.787224,0.0004204,120]
[394488624,1763621435395,150.687338,0.0004204,120]
[394488625,1763621435907,152.431769,0.0004204,120]
[394488626,1763621436302,152.431769,0.0004204,120]
[394488627,1763621437008,152.431769,0.0004204,120]
[394488628,1763621437188,152.787224,0.0004204,120]
[394488629,1763621437431,150.687338,0.0004204,120]
[394488630,1763621437498,152.431769,0.0004204,120]
[394488631,1763621437558,152.787224,0.0004204,120]
[394488633,1763621437841,150.687338,0.0004204,120]
[394488635,1763621437994,152.431769,0.0004204,120]
[394488637,1763621438181,150.687338,0.0004204,120]
[394488661,1763621438930,152.431769,0.0004204,120]
[394488662,1763621439318,152.431769,0.0004204,120]
[394488663,1763621439780,152.431769,0.0004204,120]
[394488668,1763621440029,-346.6648598,0.00016045,2]
[394488669,1763621440038,-112.20827884,0.00016147,2]
[394488670,1763621440344,-1.7e-07,0.00016147,2]
[394488671,1763621440402,152.431769,0.0004204,120]
[394488672,1763621440415,-1222.87342647,0.00016147,2]
[394488673,1763621440426,-444209.73887795,0.00016147,2]
[394488674,1763621440435,-499.92405664,0.00016148,2]
[394488675,1763621440444,-500.0,0.00016247,2]
[394488676,1763621440453,-500.0,0.00016247,2]
[394488677,1763621440463,-500.0,0.00016247,2]
[394488678,1763621440472,-500.0,0.00016248,2]
[394488679,1763621440481,-500.0,0.00016248,2]
[394488680,1763621440490,-500.0,0.00016248,2]
[394488681,1763621440499,-500.0,0.00016248,2]
[394488682,1763621440508,-500.0,0.00016248,2]
[394488683,1763621440518,-303.54666137,0.00016248,2]
[394488684,1763621440528,-1000.0,0.00016248,2]
[394488685,1763621440537,-179.56715004,0.00016254,2]
[394488686,1763621440548,-2852.70424298,0.00016254,2]
[394488687,1763621440558,-150.0,0.00016294,2]
[394488689,1763621440567,-9999.99,0.00016294,2]
[394488690,1763621440577,-150.99,0.00016294,2]
[394488691,1763621440586,-1500.0,0.00016301,2]
[394488692,1763621440596,-178.51051391,0.00016313,2]
[394488693,1763621440606,-3183.09476509,0.00016343,2]
[394488694,1763621440616,-2000.0,0.00016364,2]
[394488695,1763621440625,-499.99999999,0.00016438,2]
[394488696,1763621440634,-3020.4,0.00016438,2]
[394488697,1763621440644,-250.0,0.0001644,2]
[394488698,1763621440653,-179.56715004,0.0001646,2]
[394488699,1763621440663,-2852.70424298,0.0001646,2]
[394488700,1763621440672,-293.41636631,0.00016477,2]
[394488701,1763621440682,-5579.51,0.00016485,2]
[394488702,1763621440691,-3183.09476509,0.00016537,2]
[394488703,1763621440700,-1600.0,0.00016558,2]
[394488704,1763621440709,-178.51051391,0.00016577,2]
[394488705,1763621440719,-273.98,0.00016627,2]
[394488706,1763621440728,-179.56715004,0.00016665,2]
[394488707,1763621440737,-2852.70424298,0.00016665,2]
[394488708,1763621440747,-926.06142908,0.00016676,2]
[394488709,1763621440756,-3183.09476509,0.00016732,2]
[394488710,1763621440765,-150.0,0.000168,2]
[394488711,1763621440774,-500.0,0.000168,2]
[394488712,1763621440783,-500.0,0.000168,2]
[394488713,1763621440792,-150.0,0.000168,2]
[394488714,1763621440802,-500.0,0.000168,2]
[394488715,1763621440811,-484.0,0.000168,2]
[394488716,1763621440820,-150.0,0.000168,2]
[394488717,1763621440830,-500.0,0.000168,2]
[394488718,1763621440839,-150.0,0.000168,2]
[394488719,1763621440849,-519.0,0.000168,2]
[394488720,1763621440859,-469.0,0.000168,2]
[394488721,1763621440868,-500.0,0.00016827,2]
[394488722,1763621440878,-500.0,0.00016827,2]
[394488723,1763621440887,-500.0,0.00016827,2]
[394488724,1763621440896,-484.0,0.00016827,2]
[394488725,1763621440905,-500.0,0.00016827,2]
[394488726,1763621440915,-519.0,0.00016827,2]
[394488727,1763621440924,-469.0,0.00016827,2]
[394488728,1763621440934,-178.51051391,0.00016842,2]
[394488729,1763621440944,-151.40528151,0.00016847,2]
[394488730,1763621440952,-500.0,0.00016847,2]
[394488731,1763621440962,-500.0,0.00016847,2]
[394488732,1763621440971,-500.0,0.00016847,2]
[394488733,1763621440981,-663.0,0.00016847,2]
[394488734,1763621440990,-150.0,0.00016847,2]
[394488735,1763621440999,-500.0,0.00016847,2]
[394488736,1763621441009,-500.0,0.00016855,2]
[394488737,1763621441018,-500.0,0.00016855,2]
[394488738,1763621441027,-500.0,0.00016855,2]
[394488739,1763621441037,-484.0,0.00016855,2]
[394488740,1763621441046,-500.0,0.00016855,2]
[394488741,1763621441055,-519.0,0.00016855,2]
[394488742,1763621441064,-469.0,0.00016855,2]
[394488743,1763621441074,-179.56715004,0.00016871,2]
[394488744,1763621441084,-2852.70424298,0.00016871,2]
[394488745,1763621441093,-500.0,0.00016874,2]
[394488746,1763621441102,-500.0,0.00016874,2]
[394488747,1763621441111,-500.0,0.00016874,2]
[394488748,1763621441121,-663.0,0.00016874,2]
[394488749,1763621441130,-150.0,0.00016874,2]
[394488750,1763621441139,-500.0,0.00016874,2]
[394488751,1763621441149,-500.0,0.00016882,2]
[394488752,1763621441158,-500.0,0.00016882,2]
[394488753,1763621441168,-500.0,0.00016882,2]
[394488754,1763621441178,-484.0,0.00016882,2]
[394488755,1763621441187,-495.96397273,0.00016882,2]
[394488756,1763621441196,-519.0,0.00016882,2]
[394488757,1763621441205,-469.0,0.00016882,2]
[394488758,1763621441215,-224.69,0.00016887,2]
[394488759,1763621441225,-500.0,0.00016888,2]
[394488760,1763621441234,-500.0,0.00016902,2]
[394488761,1763621441244,-500.0,0.00016902,2]
[394488762,1763621441253,-500.0,0.00016902,2]
[394488763,1763621441262,-663.0,0.00016902,2]
[394488764,1763621441273,-150.0,0.00016902,2]
[394488765,1763621441283,-500.0,0.00016902,2]
[394488766,1763621441292,-500.0,0.00016908,2]
[394488767,1763621441301,-501.83220952,0.00016908,2]
[394488768,1763621441311,-500.0,0.00016908,2]
[394488769,1763621441322,-500.0,0.00016908,2]
[394488770,1763621441331,-500.0,0.0001691,2]
[394488771,1763621441473,-500.0,0.0001691,2]
[394488772,1763621441483,-440.4367874,0.0001691,2]
[394488773,1763621441492,-484.0,0.0001691,2]
[394488774,1763621441502,-519.0,0.0001691,2]
[394488775,1763621441511,-469.0,0.0001691,2]
[394488776,1763621441520,-293.8542161,0.00016911,2]
[394488777,1763621441530,-500.0,0.00016911,2]
[394488778,1763621441540,-458.68786148,0.00016911,2]
[394488779,1763621441550,-500.0,0.00016911,2]
[394488780,1763621441559,-500.0,0.00016913,2]
[394488781,1763621441569,-500.0,0.00016913,2]
[394488782,1763621441578,-3183.09476509,0.00016927,2]
[394488783,1763621441587,-500.0,0.00016929,2]
[394488784,1763621441597,-500.0,0.00016929,2]
[394488785,1763621441605,-500.0,0.00016929,2]
[394488786,1763621441615,-663.0,0.00016929,2]
[394488787,1763621441624,-150.0,0.00016929,2]
[394488788,1763621441633,-500.0,0.00016929,2]
[394488789,1763621441642,-500.0,0.00016937,2]
[394488790,1763621441651,-500.0,0.00016937,2]
[394488791,1763621441660,-484.0,0.00016937,2]
[394488792,1763621441670,-519.0,0.00016937,2]
[394488793,1763621441679,-469.0,0.00016937,2]
[394488794,1763621441689,-500.0,0.00016938,2]
[394488795,1763621441698,-500.0,0.00016957,2]
[394488796,1763621441708,-252.90896659,0.00016957,2]
[394488797,1763621441717,-500.0,0.00016957,2]
[394488798,1763621441726,-663.0,0.00016957,2]
[394488799,1763621441735,-165.80212459,0.00016957,2]
[394488800,1763621441744,-500.0,0.00016957,2]
[394488801,1763621441754,-310.28685172,0.00016964,2]
[394488802,1763621441763,-518.18578323,0.00016964,2]
[394488803,1763621441772,-484.0,0.00016964,2]
[394488804,1763621441781,-519.0,0.00016964,2]
[394488805,1763621441791,-469.0,0.00016964,2]
[394488806,1763621441800,-500.0,0.00016984,2]
[394488807,1763621441809,-500.0,0.00016984,2]
[394488808,1763621441819,-663.0,0.00016984,2]
[394488809,1763621441828,-500.0,0.00016984,2]
[394488810,1763621441838,-500.0,0.00016986,2]
[394488811,1763621441847,-526.28223784,0.00016986,2]
[394488812,1763621441856,-500.0,0.00016986,2]
[394488813,1763621441865,-311.47246748,0.00016986,2]
[394488814,1763621441874,-500.0,0.00016986,2]
[394488815,1763621441883,-500.0,0.00016986,2]
[394488816,1763621441893,-198.26768179,0.00016986,2]
[394488817,1763621441902,-500.0,0.00016986,2]
[394488818,1763621441911,-500.0,0.00016986,2]
[394488819,1763621441920,-500.0,0.00016986,2]
[394488820,1763621441930,-2128.79,0.00016987,2]
[394488821,1763621441940,-150.0,0.00016987,2]
[394488822,1763621441949,-500.0,0.00016987,2]
[394488823,1763621441958,-150.0,0.00016987,2]
[394488824,1763621441967,-152.0214574,0.00016987,2]
[394488825,1763621441977,-500.0,0.00016987,2]
[394488826,1763621441986,-150.0,0.00016987,2]
[394488827,1763621441996,-150.0,0.00016987,2]
[394488828,1763621442005,-500.0,0.00016987,2]
[394488829,1763621442014,-500.0,0.00016987,2]
[394488830,1763621442023,-150.0,0.00016987,2]
[394488831,1763621442032,-254.55994729,0.00016987,2]
[394488832,1763621442041,-500.0,0.00016987,2]
[394488833,1763621442051,-500.0,0.00016987,2]
[394488834,1763621442060,-150.0,0.00016987,2]
[394488835,1763621442070,-500.0,0.00016987,2]
[394488836,1763621442079,-152.80453458,0.00016987,2]
[394488837,1763621442089,-500.0,0.00016987,2]
[394488838,1763621442098,-150.0,0.00016987,2]
[394488839,1763621442108,-150.0,0.00016987,2]
[394488840,1763621442118,-151.25115773,0.00016987,2]
[394488841,1763621442127,-500.0,0.00016987,2]
[394488842,1763621442137,-150.0,0.00016987,2]
[394488843,1763621442147,-500.0,0.00016987,2]
[394488844,1763621442156,-500.0,0.00016987,2]
[394488845,1763621442165,-500.0,0.00016987,2]
[394488846,1763621442175,-500.0,0.00016987,2]
[394488847,1763621442184,-500.0,0.00016987,2]
[394488848,1763621442194,-500.0,0.00016987,2]
[394488849,1763621442203,-438.44355764,0.00016987,2]
[394488850,1763621442212,-500.0,0.00016987,2]
[394488851,1763621442221,-150.0,0.00016987,2]
[394488852,1763621442231,-150.0,0.00016987,2]
[394488853,1763621442240,-500.0,0.00016987,2]
[394488854,1763621442250,-500.0,0.00016987,2]
[394488855,1763621442259,-1273.56,0.00016987,2]
[394488856,1763621442269,-484.0,0.00016992,2]
[394488857,1763621442282,-519.0,0.00016992,2]
[394488858,1763621442291,-469.0,0.00016992,2]
[394488859,1763621442301,-250.0,0.00017,2]
[394488860,1763621442311,-415.29645176,0.00017011,2]
[394488861,1763621442320,-500.0,0.00017011,2]
[394488862,1763621442329,-663.0,0.00017011,2]
[394488863,1763621442338,-422.04463779,0.00017011,2]
[394488864,1763621442348,-152.03937927,0.00017014,2]
[394488865,1763621442357,-500.0,0.00017014,2]
[394488866,1763621442366,-150.0,0.00017014,2]
[394488867,1763621442376,-500.0,0.00017014,2]
[394488868,1763621442386,-151.45128468,0.00017014,2]
[394488869,1763621442395,-150.0,0.00017014,2]
[394488870,1763621442405,-500.0,0.00017014,2]
[394488871,1763621442414,-500.0,0.00017014,2]
[394488872,1763621442424,-150.0,0.00017014,2]
[394488873,1763621442434,-500.0,0.00017014,2]
[394488874,1763621442443,-500.0,0.00017014,2]
[394488875,1763621442453,-150.0,0.00017014,2]
[394488876,1763621442462,-500.0,0.00017014,2]
[394488877,1763621442471,-500.0,0.00017014,2]
[394488878,1763621442481,-150.0,0.00017014,2]
[394488879,1763621442490,-150.0,0.00017014,2]
[394488880,1763621442499,-500.0,0.00017014,2]
[394488881,1763621442508,-218.12232883,0.00017014,2]
[394488882,1763621442518,-500.0,0.00017014,2]
[394488883,1763621442527,-500.0,0.00017014,2]
[394488884,1763621442536,-150.0,0.00017014,2]
[394488885,1763621442547,-150.0,0.00017014,2]
[394488886,1763621442557,-553.23059072,0.00017014,2]
[394488887,1763621442567,-500.0,0.00017014,2]
[394488888,1763621442577,-484.0,0.00017019,2]
[394488889,1763621442588,-519.0,0.00017019,2]
[394488890,1763621442598,-469.0,0.00017019,2]
[394488891,1763621442607,-500.0,0.00017039,2]
[394488892,1763621442617,-663.0,0.00017039,2]
[394488893,1763621442626,-360.15703236,0.00017042,2]
[394488894,1763621442636,-150.0,0.00017042,2]
[394488895,1763621442646,-500.0,0.00017042,2]
[394488896,1763621442656,-150.0,0.00017042,2]
[394488897,1763621442666,-500.0,0.00017042,2]
[394488898,1763621442676,-216.44084954,0.00017042,2]
[394488899,1763621442691,-150.0,0.00017042,2]
[394488900,1763621442700,-500.0,0.00017042,2]
[394488901,1763621442710,-500.0,0.00017042,2]
[394488902,1763621442720,-150.0,0.00017042,2]
[394488903,1763621442730,-231.28870318,0.00017042,2]
[394488904,1763621442739,-500.0,0.00017042,2]
[394488905,1763621442750,-150.0,0.00017042,2]
[394488907,1763621442760,-150.0,0.00017042,2]
[394488908,1763621442769,-500.0,0.00017042,2]
[394488909,1763621442778,-197.45528244,0.00017042,2]
[394488910,1763621442788,-454.41316794,0.00017042,2]
[394488911,1763621442798,-150.0,0.00017042,2]
[394488912,1763621442807,-150.0,0.00017042,2]
[394488913,1763621442817,-500.0,0.00017042,2]
[394488914,1763621442827,-500.0,0.00017042,2]
[394488915,1763621442837,-484.0,0.00017047,2]
[394488916,1763621442846,-519.0,0.00017047,2]
[394488917,1763621442855,-469.0,0.00017047,2]
[394488918,1763621442865,-500.0,0.00017066,2]
[394488919,1763621442874,-663.0,0.00017066,2]
[394488920,1763621442888,-150.0,0.00017069,2]
[394488921,1763621442898,-500.0,0.00017069,2]
[394488922,1763621442908,-154.66376572,0.00017069,2]
[394488923,1763621442917,-315.67396154,0.00017069,2]
[394488924,1763621442927,-186.39397685,0.00017069,2]
[394488925,1763621442938,-500.0,0.00017069,2]
[394488926,1763621442947,-500.0,0.00017069,2]
[394488927,1763621442957,-150.0,0.00017069,2]
[394488928,1763621442966,-419.39129392,0.00017069,2]
[394488929,1763621442975,-150.0,0.00017069,2]
[394488930,1763621442985,-150.0,0.00017069,2]
[394488931,1763621442994,-500.0,0.00017069,2]
[394488932,1763621443003,-216.82890948,0.00017069,2]
[394488933,1763621443013,-204.42568099,0.00017069,2]
[394488934,1763621443023,-500.0,0.00017069,2]
[394488935,1763621443032,-500.0,0.00017069,2]
[394488936,1763621443041,-484.0,0.00017074,2]
[394488937,1763621443051,-519.0,0.00017074,2]
[394488938,1763621443060,-469.0,0.00017074,2]
[394488939,1763621443069,-179.56715004,0.00017077,2]
[394488940,1763621443079,-2852.70424298,0.00017077,2]
[394488941,1763621443089,-500.0,0.00017094,2]
[394488942,1763621443098,-663.0,0.00017094,2]
[394488943,1763621443107,-150.0,0.00017097,2]
[394488944,1763621443116,-174.03996946,0.00017097,2]
[394488945,1763621443125,-230.64385222,0.00017097,2]
[394488946,1763621443143,-500.0,0.00017097,2]
[394488947,1763621443154,-204.80203787,0.00017097,2]
[394488948,1763621443164,-155.09276984,0.00017097,2]
[394488949,1763621443174,-252.43090638,0.00017097,2]
[394488950,1763621443185,-500.0,0.00017097,2]
[394488951,1763621443194,-500.0,0.00017097,2]
[394488952,1763621443204,-500.0,0.00017097,2]
[394488953,1763621443214,-150.0,0.000171,2]
[394488954,1763621443223,-150.0,0.000171,2]
[394488955,1763621443232,-150.0,0.000171,2]
[394488956,1763621443242,-484.0,0.00017101,2]
[394488957,1763621443251,-519.0,0.00017101,2]
[394488958,1763621443261,-469.0,0.00017101,2]
[394488959,1763621443271,-178.51051391,0.00017106,2]
[394488960,1763621443284,-312.00671795,0.00017121,2]
[394488961,1763621443293,-663.0,0.00017121,2]
[394488962,1763621443303,-3183.09476509,0.00017121,2]
[394488963,1763621443312,-156.05141488,0.00017124,2]
[394488964,1763621443323,-500.0,0.00017124,2]
[394488965,1763621443332,-500.0,0.00017124,2]
[394488966,1763621443342,-500.0,0.00017124,2]
[394488967,1763621443351,-484.0,0.00017129,2]
[394488968,1763621443362,-519.0,0.00017129,2]
[394488969,1763621443372,-469.0,0.00017129,2]
[394488970,1763621443382,-663.0,0.00017148,2]
[394488971,1763621443391,-500.0,0.00017151,2]
[394488972,1763621443401,-186.51122994,0.00017151,2]
[394488973,1763621443410,-500.0,0.00017151,2]
[394488974,1763621443420,-484.0,0.00017156,2]
[394488975,1763621443430,-519.0,0.00017156,2]